bitfinex-derivatives/quotes_BNBF0:USTF0_20250810
["timestamp","ask_amount","ask_price","bid_price","bid_amount"]
[1754809901650,0.5,812.16,812.07,1.64040576]
[1754809902054,0.5,812.16,812.0,1.64040576]
[1754809903153,0.35,812.14,812.0,1.64040576]
[1754809903352,0.5,812.16,812.0,1.64040576]
[1754809904158,0.5,812.16,811.99,1.64040576]
[1754809904453,0.5,812.16,812.15,1.09253231]
[1754809907060,0.5,812.16,812.14,1.09253231]
[1754809908059,0.5,812.16,812.13,1.09253231]
[1754809908258,0.5,812.16,812.01,1.09253231]
[1754809909963,0.342,812.14,812.01,1.09253231]
[1754809910164,0.5,812.16,812.01,1.09253231]
[1754809911871,0.5,812.16,812.02,1.09253231]
[1754809915672,0.5,812.16,812.01,1.09253231]
[1754809916169,0.5,812.16,812.02,1.09253231]
[1754809918175,0.5,812.16,812.06,1.09253231]
[1754809920378,0.5,812.16,812.07,1.09253231]
[1754809920578,0.21449109,812.14,812.07,1.09253231]
[1754809923375,0.21449109,812.14,811.98,1.64040576]
[1754809923676,0.21449109,812.14,812.0,1.64040576]
[1754809924074,0.21449109,812.14,812.02,1.64040576]
[1754809924279,0.21449109,812.14,811.99,1.64040576]
[1754809925276,0.21449109,812.14,812.0,1.64040576]
[1754809925881,0.21449109,812.14,812.01,1.64040576]
[1754809926382,0.21449109,812.14,812.07,1.64040576]
[1754809927583,0.21449109,812.14,812.09,1.64040576]
[1754809928085,0.21449109,812.14,812.13,1.64040576]
[1754809928584,0.21449109,812.14,811.45,2.76446557]
[1754809928879,0.21449109,812.14,811.46,1.08467651]
[1754809929082,0.21449109,812.14,811.47,1.08467651]
[1754809929284,0.21449109,812.14,811.48,1.08467651]
[1754809929485,0.21449109,812.14,811.49,1.08467651]
[1754809929783,0.21449109,812.14,811.5,1.08467651]
[1754809929983,0.21449109,812.14,811.51,1.08467651]
[1754809930184,0.21449109,812.14,811.45,2.76446557]
[1754809930482,0.21449109,812.14,811.46,3.84946291]
[1754809930785,0.21449109,812.14,811.47,1.08499734]
[1754809930985,0.21449109,812.14,811.48,1.08499734]
[1754809931186,0.21449109,812.14,811.53,2.76446557]
[1754809931482,0.35,812.27,811.53,2.76446557]
[1754809931685,0.35,812.27,811.19,3.87025181]
[1754809931686,0.5,812.28,811.69,2.76446557]
[1754809931880,0.5,812.28,812.27,1.64533271]
[1754809933385,0.5,812.28,811.41,3.87025181]
[1754809933386,0.5,812.28,811.7,2.76446557]
[1754809934788,0.21448713,812.14,811.71,2.76446557]
[1754809935283,0.21448713,812.14,811.68,2.76446557]
[1754809936288,0.21448713,812.14,811.7,2.76446557]
[1754809936789,0.21448713,812.14,811.71,2.76446557]
[1754809937388,0.21448713,812.14,811.72,2.76446557]
[1754809937985,0.21448713,812.14,811.75,2.76446557]
[1754809938488,0.21448713,812.14,811.76,2.76446557]
[1754809938888,0.21448713,812.14,811.78,2.76446557]
[1754809940086,0.21448713,812.14,811.82,2.76446557]
[1754809940589,0.21448713,812.14,811.79,2.76446557]
[1754809940884,0.21448713,812.14,811.8,2.76446557]
[1754809941690,0.5,812.28,811.65,2.76446557]
[1754809944093,0.5,812.28,812.27,1.64597011]
[1754809944892,0.71444946,812.28,812.27,1.64597011]
[1754809947093,0.71444946,812.28,812.24,1.64597011]
[1754809948293,0.71444946,812.28,812.25,1.64597011]
[1754809949095,0.71444946,812.28,812.19,1.64597011]
[1754809950494,0.71444946,812.28,812.2,1.64597011]
[1754809951197,0.71444946,812.28,812.23,1.64597011]
[1754809956796,0.71444946,812.28,812.25,1.64597011]
[1754809958305,0.71444946,812.28,812.2,1.64597011]
[1754809959004,0.71444946,812.28,811.51,2.76446557]
[1754809959204,0.71444946,812.28,811.69,2.76446557]
[1754809960804,0.71444946,812.28,811.68,2.76446557]
[1754809961301,0.71444946,812.28,811.69,2.76446557]
[1754809961703,0.71444946,812.28,811.75,2.76446557]
[1754809962402,0.71444946,812.28,811.74,2.76446557]
[1754809963306,0.71444946,812.28,811.76,2.76446557]
[1754809964403,0.71444946,812.28,811.71,2.76446557]
[1754809965310,0.71444946,812.28,811.74,2.76446557]
[1754809966006,0.71444946,812.28,811.75,2.76446557]
[1754809966608,0.71444946,812.28,812.26,1.6438674]
[1754809967508,0.71444946,812.28,812.27,1.6438674]
[1754809967708,0.71444946,812.28,811.63,2.76446557]
[1754809968111,0.71444946,812.28,811.67,2.76446557]
[1754809968509,0.71444946,812.28,811.72,2.76446557]
[1754809969108,0.71444946,812.28,811.73,2.76446557]
[1754809970211,0.71444946,812.28,811.71,2.76446557]
[1754809970608,0.71444946,812.28,811.7,2.76446557]
[1754809972208,1.10800405,813.48,811.71,2.76446557]
[1754809972412,1.10800405,813.52,812.42,1.09690057]
[1754809972914,1.10800405,813.57,812.42,1.09690057]
[1754809973110,1.10800405,813.48,812.33,1.09690057]
[1754809973308,1.10800405,813.46,812.33,0.59690057]
[1754809973513,1.10800405,813.39,812.15,1.64535086]
[1754809973713,1.10800405,813.32,812.13,1.64535086]
[1754809974415,1.10800405,813.31,812.12,1.14535086]
[1754809975413,1.10800405,813.3,811.48,2.76446557]
[1754809975716,0.33,812.03,811.45,2.76446557]
[1754809977214,0.33,812.03,811.44,2.76446557]
[1754809977416,0.293,811.97,811.27,2.76446557]
[1754809977720,0.5,811.99,811.28,1.08657269]
[1754809978015,0.5,811.99,811.29,1.08657269]
[1754809978217,0.5,811.99,811.3,1.08657269]
[1754809978416,0.5,811.99,810.87,2.76446557]
[1754809978617,0.5,811.99,810.88,1.68519259]
[1754809978820,0.5,811.99,810.89,1.68519259]
[1754809979020,0.5,811.99,810.9,1.68519259]
[1754809979215,0.5,811.99,810.91,1.68519259]
[1754809979520,0.5,811.99,810.92,1.68519259]
[1754809979720,0.5,811.99,810.93,1.68519259]
[1754809980016,0.5,811.99,810.94,1.68519259]
[1754809980218,0.5,811.99,810.95,1.68519259]
[1754809980421,0.5,811.99,810.96,1.68519259]
[1754809980623,0.5,811.99,810.97,1.68519259]
[1754809980820,0.5,811.99,810.98,1.68519259]
[1754809981021,0.5,811.99,810.99,1.68519259]
[1754809981325,0.5,811.99,811.0,1.68519259]
[1754809981621,0.5,811.99,811.01,1.68519259]
[1754809981924,0.5,811.99,810.81,2.76446557]
[1754809981925,0.5,811.99,811.02,1.68519259]
[1754809982120,0.5,811.99,811.03,1.08622784]
[1754809982425,0.5,811.99,810.82,2.76446557]
[1754809982426,0.5,811.99,811.04,1.08622784]
[1754809982625,0.5,811.99,811.05,1.08622784]
[1754809982921,0.5,811.99,811.06,1.08622784]
[1754809983123,0.5,811.99,811.07,1.08622784]
[1754809983424,0.5,811.99,811.08,1.08622784]
[1754809983729,0.5,811.88,810.73,2.76446557]
[1754809984023,0.293,811.83,810.93,2.76446557]
[1754809984324,0.5,811.61,810.62,2.76446557]
[1754809984527,0.5,811.61,810.81,1.08477286]
[1754809984724,0.5,811.68,810.82,1.08477286]
[1754809984926,0.5,811.68,810.83,1.08477286]
[1754809985125,0.5,811.68,810.84,1.08477286]
[1754809985326,0.5,811.68,810.85,1.08477286]
[1754809985526,0.5,811.68,810.86,1.08477286]
[1754809985828,0.5,811.68,810.87,1.08477286]
[1754809986026,0.5,811.68,810.88,1.08477286]
[1754809986325,0.5,811.68,810.22,2.76446557]
[1754809986326,0.5,811.68,810.89,1.08477286]
[1754809986626,0.5,811.68,810.9,1.08477286]
[1754809986830,0.5,811.68,810.91,1.08477286]
[1754809987031,0.5,811.68,810.92,1.08477286]
[1754809987226,0.5,811.68,810.23,2.76446557]
[1754809987431,0.5,811.68,810.81,1.08288092]
[1754809987628,0.5,811.68,810.82,1.08288092]
[1754809987831,0.5,811.68,810.83,1.08288092]
[1754809988131,0.5,811.68,810.84,1.08288092]
[1754809988428,0.5,811.68,810.85,1.08288092]
[1754809988729,0.5,811.68,810.86,1.08288092]
[1754809988932,0.5,811.68,810.87,1.08288092]
[1754809989233,0.5,811.68,810.88,1.08288092]
[1754809989528,0.5,811.68,810.89,1.08288092]
[1754809989734,0.5,811.68,810.9,1.08288092]
[1754809990031,0.5,811.68,811.06,2.76446557]
[1754809990533,0.5,811.68,811.08,2.76446557]
[1754809991630,0.5,811.68,811.07,2.76446557]
[1754809992134,0.5,811.68,811.08,2.76446557]
[1754809992533,0.5,811.68,811.05,2.76446557]
[1754809993636,0.344,811.66,811.05,2.76446557]
[1754809993837,0.5,811.68,811.05,2.76446557]
[1754809994038,0.5,811.68,811.04,2.76446557]
[1754809994339,0.5,811.68,811.6,1.6374473]
[1754809995238,0.5,811.68,811.45,1.6374473]
[1754809995535,0.5,811.68,811.44,1.6374473]
[1754809997638,0.5,811.68,811.43,1.6374473]
[1754809998140,0.5,811.68,811.41,1.6374473]
[1754810000341,0.5,811.68,811.4,1.6374473]
[1754810001343,0.5,811.68,811.43,1.6374473]
[1754810001540,0.5,811.73,811.26,1.6374473]
[1754810001743,0.5,812.07,811.51,1.6374473]
[1754810001940,0.5,812.07,811.53,1.6374473]
[1754810002340,0.5,812.07,811.51,1.6374473]
[1754810002946,0.5,812.01,811.51,1.6374473]
[1754810003241,0.5,812.01,811.77,1.08856946]
[1754810007144,0.5,812.01,811.75,1.08856946]
[1754810007348,0.5,812.01,811.76,1.08856946]
[1754810008045,0.5,812.01,811.78,1.08856946]
[1754810008345,0.5,812.01,811.74,1.08856946]
[1754810008543,0.5,812.01,811.75,1.08856946]
[1754810009045,0.5,812.01,811.79,1.08856946]
[1754810009445,0.5,812.01,811.8,1.08856946]
[1754810010045,0.5,812.01,811.83,1.08856946]
[1754810010846,0.5,812.08,811.93,1.08856946]
[1754810011046,0.5,812.08,812.04,1.08856946]
[1754810011349,0.5,812.08,812.03,1.08856946]
[1754810012347,0.5,812.08,812.04,1.08856946]
[1754810016455,0.5,812.08,812.05,1.08856946]
[1754810018155,0.5,812.08,811.92,1.6374473]
[1754810018355,0.5,812.08,811.93,1.6374473]
[1754810018856,0.5,812.12,811.96,1.6374473]
[1754810019052,0.5,812.12,811.97,1.6374473]
[1754810019253,0.5,812.12,812.0,1.6374473]
[1754810019453,0.5,812.12,812.02,1.6374473]
[1754810019652,0.5,812.2,812.11,1.6374473]
[1754810019853,0.5,812.2,812.12,1.6374473]
[1754810020558,0.5,812.3,812.15,1.6374473]
[1754810022257,0.5,812.3,812.26,1.08924064]
[1754810022556,0.5,812.3,812.13,1.6374473]
[1754810023259,0.5,812.3,812.29,1.08860705]
[1754810023459,0.5,812.3,812.13,1.6374473]
[1754810023959,0.5,812.3,812.28,1.08869098]
[1754810024460,0.5,812.3,812.27,1.08869098]
[1754810025361,0.5,812.3,812.28,1.08869098]
[1754810025560,0.5,812.3,812.26,1.08869098]
[1754810025761,0.5,812.3,812.25,1.08869098]
[1754810026256,0.5,812.3,812.26,1.08869098]
[1754810026461,0.5,812.3,812.25,1.08869098]
[1754810027563,0.5,812.3,812.26,1.08869098]
[1754810028163,0.5,812.3,812.25,1.08869098]
[1754810029264,0.5,812.3,812.26,1.08869098]
[1754810029465,0.5,812.3,812.25,1.08869098]
[1754810030365,0.5,812.3,812.28,1.08869098]
[1754810030561,0.5,812.3,812.23,1.08869098]
[1754810032261,0.5,812.3,812.24,1.08869098]
[1754810037067,0.5,812.31,811.97,1.08869098]
[1754810038569,0.5,812.31,811.96,1.08869098]
[1754810039368,0.5,812.31,811.98,1.08869098]
[1754810039565,0.5,812.31,811.92,1.08869098]
[1754810040469,0.5,812.31,811.93,1.08869098]
[1754810041568,0.5,812.31,811.95,1.08869098]
[1754810041968,0.5,812.31,811.94,1.08869098]
[1754810042269,0.5,812.31,811.88,1.08869098]
[1754810044471,0.5,812.31,811.92,1.08869098]
[1754810044770,0.5,812.31,811.99,1.08869098]
[1754810045371,0.5,812.31,812.0,1.08869098]
[1754810046970,0.5,812.31,812.16,1.08869098]
[1754810047372,0.5,812.31,812.17,1.08869098]
[1754810048373,0.5,812.31,812.15,1.08869098]
[1754810048969,0.5,812.31,812.19,1.08869098]
[1754810049471,0.5,812.31,812.22,1.08869098]
[1754810049668,0.5,812.31,812.23,1.08869098]
[1754810049973,0.5,812.31,812.25,1.08869098]
[1754810050669,0.5,812.31,812.26,1.08869098]
[1754810051873,0.5,812.31,812.07,1.6374473]
[1754810051874,0.5,812.31,812.27,1.08869098]
[1754810053574,0.5,812.31,812.28,1.08869098]
[1754810053974,0.5,812.31,812.3,1.08869098]
[1754810054775,0.5,812.31,812.27,1.08869098]
[1754810055580,0.5,812.31,812.26,1.08869098]
[1754810056381,0.5,812.31,812.27,1.08869098]
[1754810056581,0.5,812.31,812.28,1.08869098]
[1754810057578,0.5,812.31,812.29,1.08869098]
[1754810058181,0.5,812.31,812.12,1.6374473]
[1754810058380,0.5,812.31,812.13,1.6374473]
[1754810058782,0.5,812.31,812.16,1.6374473]
[1754810059380,0.5,812.31,812.19,1.6374473]
[1754810059581,0.5,812.31,812.2,1.6374473]
[1754810060383,0.5,812.31,812.21,1.6374473]
[1754810061386,0.5,812.31,812.22,1.6374473]
[1754810063089,0.5,812.31,812.21,1.6374473]
[1754810064584,0.5,812.31,812.25,1.6374473]
[1754810064784,0.5,812.31,812.21,1.6374473]
[1754810065089,0.5,812.31,812.2,1.6374473]
[1754810065489,0.5,812.31,812.21,1.6374473]
[1754810068387,0.5,812.31,812.22,1.6374473]
[1754810069487,0.5,812.31,812.23,1.6374473]
[1754810070392,0.5,812.31,812.24,1.6374473]
[1754810071494,0.5,812.31,812.25,1.6374473]
[1754810073498,0.5,812.27,812.22,1.6374473]
[1754810073800,0.21442831,813.02,812.22,1.1374473]
[1754810073998,0.21442831,813.02,812.4,1.0941699]
[1754810074200,0.21442831,813.02,812.39,1.0941699]
[1754810074397,0.21442831,813.02,812.4,1.0941699]
[1754810074801,0.21442831,813.02,812.43,0.5941699]
[1754810075205,0.21442831,813.02,811.61,2.76446557]
[1754810075499,0.321,812.2,811.6,2.76446557]
[1754810075901,0.5,812.28,811.6,2.76446557]
[1754810076105,0.5,812.28,811.61,2.76446557]
[1754810076602,0.5,812.28,811.66,2.76446557]
[1754810077101,0.5,812.28,811.65,2.76446557]
[1754810077306,0.326,812.2,811.65,2.76446557]
[1754810077505,0.21442831,813.02,811.71,2.76446557]
[1754810078006,0.5,812.27,811.71,2.76446557]
[1754810078807,0.5,812.27,811.7,2.76446557]
[1754810079607,0.5,812.27,811.72,2.76446557]
[1754810080206,0.5,812.27,811.69,2.76446557]
[1754810080709,0.5,812.27,811.7,2.76446557]
[1754810081806,0.5,812.27,811.71,2.76446557]
[1754810083007,0.5,812.2,811.71,2.76446557]
[1754810083508,0.5,812.2,811.72,2.76446557]
[1754810085412,0.5,812.2,811.74,2.76446557]
[1754810086014,0.5,812.25,811.74,2.76446557]
[1754810086611,0.21442831,813.02,811.75,0.69100386]
[1754810086810,0.21442831,813.02,811.76,0.69100386]
[1754810087115,0.21442831,813.02,811.81,2.76446557]
[1754810087312,0.21442831,813.02,811.82,0.69100386]
[1754810087612,0.5,812.3,811.83,0.69100386]
[1754810087811,0.21442831,813.02,811.84,0.69100386]
[1754810088014,0.21442831,813.02,811.85,0.69100386]
[1754810088314,0.21442831,813.02,811.81,2.76446557]
[1754810088315,0.5,812.3,811.86,0.69100386]
[1754810088614,0.5,812.3,811.83,2.76446557]
[1754810089011,0.5,812.3,811.82,2.76446557]
[1754810090014,0.5,812.3,811.83,2.76446557]
[1754810090612,0.5,812.3,811.86,2.76446557]
[1754810092214,0.5,812.3,811.92,2.76446557]
[1754810092614,0.5,812.3,811.91,2.76446557]
[1754810093709,0.5,812.3,811.92,2.76446557]
[1754810094817,0.5,812.3,811.91,2.76446557]
[1754810096417,0.5,812.3,812.02,2.76446557]
[1754810096819,0.5,812.31,812.02,2.76446557]
[1754810097720,0.21442831,813.02,812.02,2.76446557]
[1754810098015,0.21442831,813.02,812.49,1.6432186]
[1754810098220,0.21442831,813.02,812.49,0.79533508]
[1754810098816,0.21442831,813.02,812.49,0.29533508]
[1754810099715,0.21442831,813.02,812.0,2.76446557]
[1754810100419,0.21442831,813.02,811.98,2.76446557]
[1754810101020,0.291,812.29,811.04,2.76446557]
[1754810101219,0.291,812.29,811.05,1.69552965]
[1754810101414,0.291,812.29,811.06,1.69552965]
[1754810101616,0.291,812.29,811.07,1.69552965]
[1754810101816,0.291,812.29,811.08,1.69552965]
[1754810102015,0.5,812.23,811.09,1.69552965]
[1754810102215,0.5,812.23,811.1,1.69552965]
[1754810102418,0.5,812.23,811.11,1.69552965]
[1754810102618,0.5,812.23,811.12,1.69552965]
[1754810102822,0.5,812.23,811.13,1.69552965]
[1754810103115,0.5,812.22,811.14,1.69552965]
[1754810103320,0.5,812.22,811.15,1.69552965]
[1754810103521,0.5,812.22,811.16,1.69552965]
[1754810103716,0.5,812.22,811.17,1.69552965]
[1754810103915,0.5,812.22,811.18,1.69552965]
[1754810104118,0.5,812.22,811.19,1.69552965]
[1754810104319,0.5,812.22,811.2,1.69419075]
[1754810104517,0.5,812.22,811.26,2.76446557]
[1754810104717,0.5,812.22,811.27,1.69419075]
[1754810104919,0.5,812.22,811.28,1.69419075]
[1754810105117,0.5,812.22,811.29,1.69419075]
[1754810105422,0.5,812.22,811.3,1.69419075]
[1754810105620,0.5,812.22,811.31,1.69419075]
[1754810105817,0.5,812.22,811.32,1.69419075]
[1754810106020,0.5,812.22,811.33,1.69419075]
[1754810106318,0.5,812.22,811.34,1.69419075]
[1754810106521,0.5,812.22,811.35,1.69419075]
[1754810106717,0.5,812.22,811.36,1.09581082]
[1754810106921,0.5,812.22,811.37,1.09581082]
[1754810107217,0.5,812.22,811.38,1.09581082]
[1754810107421,0.5,812.22,811.39,1.09581082]
[1754810107622,0.5,812.22,811.4,1.09581082]
[1754810107819,0.5,812.22,811.41,1.09581082]
[1754810108019,0.5,812.22,811.42,1.09581082]
[1754810108319,0.5,812.22,811.43,1.09581082]
[1754810108617,0.5,812.22,811.44,1.09581082]
[1754810108821,0.5,812.22,811.45,1.09581082]
[1754810109022,0.5,812.22,811.46,1.09581082]
[1754810109322,0.5,812.22,811.47,1.09581082]
[1754810109521,0.5,812.22,811.48,1.09581082]
[1754810109719,0.5,812.22,811.49,1.09581082]
[1754810110023,0.5,812.22,811.5,1.09581082]
[1754810110324,0.5,812.22,811.51,1.09581082]
[1754810110624,0.5,812.22,811.31,2.76446557]
[1754810110824,0.5,812.22,811.54,2.76446557]
[1754810111224,0.5,812.22,811.61,2.76446557]
[1754810111719,0.5,812.22,811.63,2.76446557]
[1754810112320,0.5,812.22,811.64,2.76446557]
[1754810112924,0.5,812.22,811.68,2.76446557]
[1754810113424,0.5,812.22,811.6,2.76446557]
[1754810113825,0.5,812.22,811.62,2.76446557]
[1754810115426,0.5,812.22,810.8,6.74093115]
[1754810115427,0.5,812.22,811.58,2.76446557]
[1754810116124,0.295,812.19,811.58,2.76446557]
[1754810116525,0.295,812.19,811.55,2.76446557]
[1754810116730,0.295,812.19,812.18,1.09653435]
[1754810116925,0.21442831,813.02,812.18,0.59653435]
[1754810117130,0.21442831,813.02,811.44,2.76446557]
[1754810117326,0.21442831,813.02,811.27,2.76446557]
[1754810117631,0.293,811.96,811.28,0.69347346]
[1754810117832,0.21442831,813.02,811.29,0.69347346]
[1754810118032,0.21442831,813.02,811.3,0.69347346]
[1754810118233,0.21442831,813.02,811.31,0.69347346]
[1754810118433,0.21442831,813.02,811.32,0.69347346]
[1754810118634,0.5,811.81,811.33,0.69347346]
[1754810118929,0.5,811.8,811.34,0.69347346]
[1754810119233,0.5,811.8,811.35,0.69347346]
[1754810119430,0.5,811.8,811.36,0.69347346]
[1754810119729,0.5,811.8,811.37,0.69347346]
[1754810119932,0.5,811.8,811.38,0.69347346]
[1754810120130,0.5,811.8,811.39,0.69347346]
[1754810120330,0.5,811.8,811.4,0.69347346]
[1754810120531,0.5,811.8,811.41,0.69347346]
[1754810120732,0.5,811.8,811.42,0.69347346]
[1754810120933,0.5,811.8,811.43,0.69347346]
[1754810121135,0.5,811.8,811.44,0.69347346]
[1754810121332,0.5,811.8,811.45,0.69347346]
[1754810121537,0.5,811.8,811.46,0.69347346]
[1754810121736,0.5,811.8,811.47,0.69347346]
[1754810121936,0.5,811.8,811.48,0.69347346]
[1754810122133,0.5,811.8,811.79,1.64137091]
[1754810122433,0.5,811.8,811.79,2.33022145]
[1754810123934,0.5,811.8,811.79,0.68885054]
[1754810127837,0.21442831,813.02,811.79,0.68885054]
[1754810128038,0.21442831,813.02,811.8,2.32786245]
[1754810128341,0.21442831,813.02,811.81,0.68885054]
[1754810128540,0.21442831,813.02,811.82,0.68885054]
[1754810128739,0.21442831,813.02,811.83,0.68885054]
[1754810128939,0.21442831,813.02,811.84,0.18885054]
[1754810129139,0.21442831,813.02,811.78,1.63901191]
[1754810129839,0.21442831,813.02,811.76,1.63901191]
[1754810130042,0.5,811.8,811.76,1.63901191]
[1754810130542,0.5,811.79,811.76,1.63901191]
[1754810131739,0.5,811.79,811.78,1.63901191]
[1754810133639,0.5,811.79,811.16,2.76446557]
[1754810134042,0.5,811.79,811.29,2.76446557]
[1754810134543,0.5,811.79,811.27,2.76446557]
[1754810135042,0.5,811.79,811.26,2.76446557]
[1754810135644,0.5,811.79,811.28,2.76446557]
[1754810136145,0.5,811.79,811.26,2.76446557]
[1754810136747,0.5,811.79,811.29,2.76446557]
[1754810137249,0.5,811.79,811.26,2.76446557]
[1754810137748,0.5,811.79,811.3,2.76446557]
[1754810138849,0.5,811.79,811.28,2.76446557]
[1754810140547,0.5,811.79,811.27,2.76446557]
[1754810141350,0.5,811.79,811.28,2.76446557]
[1754810141847,0.5,811.79,811.26,2.76446557]
[1754810143046,0.5,811.79,811.27,2.76446557]
[1754810143546,0.5,811.79,811.26,2.76446557]
[1754810144051,0.5,811.79,811.27,2.76446557]
[1754810146648,0.5,811.79,811.28,2.76446557]
[1754810147053,0.5,811.79,811.75,1.63520439]
[1754810147349,0.5,811.79,811.68,1.63520439]
[1754810147852,0.5,811.79,811.66,1.63520439]
[1754810148248,0.5,811.79,811.64,1.63520439]
[1754810149350,0.5,811.79,811.65,1.63520439]
[1754810151054,0.5,811.79,811.64,1.63520439]
[1754810151354,0.5,811.79,811.63,1.63520439]
[1754810151651,0.5,811.79,811.64,1.63520439]
[1754810152051,0.5,811.79,811.63,1.63520439]
[1754810153352,0.5,811.79,811.77,1.09183003]
[1754810154253,0.5,811.79,811.73,1.09183003]
[1754810154654,0.5,811.79,811.72,1.09183003]
[1754810154853,0.5,811.79,811.7,1.09183003]
[1754810155353,0.21442831,813.02,810.41,3.87025181]
[1754810155354,0.5,811.81,811.67,1.09183003]
[1754810155653,0.21442831,813.02,811.67,0.59183003]
[1754810156557,0.21442831,813.02,811.44,1.63520439]
[1754810157052,0.21442831,813.02,811.45,1.63520439]
[1754810157257,0.5,811.58,811.45,1.63520439]
[1754810158157,0.5,811.58,810.2,1.325]
[1754810158158,0.5,811.58,811.46,1.63520439]
[1754810158458,0.5,811.58,811.47,1.63520439]
[1754810159154,0.5,811.58,811.44,1.63520439]
[1754810159356,0.5,811.58,811.38,1.63520439]
[1754810159559,0.5,811.58,811.41,1.63520439]
[1754810159756,0.5,811.58,811.34,1.63520439]
[1754810160362,0.5,811.55,811.34,1.63520439]
[1754810160555,0.5,811.55,811.35,1.63520439]
[1754810160758,0.5,811.58,811.35,1.63520439]
[1754810161055,0.5,811.58,811.37,1.63520439]
[1754810162359,0.5,811.57,811.37,1.63520439]
[1754810162956,0.5,811.57,811.38,1.63520439]
[1754810164861,0.5,811.57,811.44,1.63520439]
[1754810166163,0.5,811.57,811.41,1.63520439]
[1754810167164,0.5,811.57,811.42,1.63520439]
[1754810167366,0.5,811.57,811.41,1.63520439]
[1754810167861,0.5,811.57,811.39,1.63520439]
[1754810168060,0.5,811.57,811.38,1.63520439]
[1754810168464,0.5,811.57,811.39,1.63520439]
[1754810169165,0.5,811.57,811.42,1.63520439]
[1754810169467,0.5,811.57,811.44,1.63520439]
[1754810171172,0.5,811.57,811.45,1.63520439]
[1754810173671,0.5,811.57,811.46,1.63520439]
[1754810174668,0.5,811.57,811.47,1.63520439]
[1754810175869,0.2146578,811.55,811.47,1.63520439]
[1754810176068,0.2146578,811.55,811.5,1.63520439]
[1754810176274,0.2146578,811.55,811.51,1.63520439]
[1754810177268,0.2146578,811.55,811.31,1.63520439]
[1754810177770,0.2146578,811.55,811.32,1.63520439]
[1754810178873,0.2146578,811.55,811.33,1.63520439]
[1754810179273,0.2146578,811.55,811.32,1.63520439]
[1754810181075,0.2146578,811.55,811.33,1.63520439]
[1754810181573,0.2146578,811.55,810.63,2.76446557]
[1754810181574,0.2146578,811.55,811.34,1.63520439]
[1754810185872,0.2146578,811.55,811.33,1.63520439]
[1754810186076,0.5,811.48,811.1,1.63520439]
[1754810186277,0.2146578,811.55,810.98,1.63520439]
[1754810186475,1.1033148,812.81,811.14,1.63520439]
[1754810186777,1.1033148,812.81,811.35,1.09869374]
[1754810187375,1.1033148,812.82,811.34,1.09869374]
[1754810188277,1.1033148,812.81,811.36,1.09869374]
[1754810189078,1.1033148,812.83,811.38,1.09869374]
[1754810189279,5.54316617,814.86,809.95,3.87025181]
[1754810189280,1.1033148,812.85,811.4,1.09869374]
[1754810191077,1.1033148,812.81,811.43,1.09869374]
[1754810191281,0.5,811.46,811.43,1.09869374]
[1754810191683,0.5,811.46,811.44,1.09869374]
[1754810196185,0.5,811.46,811.26,1.63520439]
[1754810196186,0.5,811.46,811.32,1.63520439]
[1754810196385,0.5,811.46,811.36,1.63520439]
[1754810196581,0.5,811.5,811.3,1.63520439]
[1754810196787,0.5,811.56,811.3,1.63520439]
[1754810196986,0.5,811.56,811.51,1.09757664]
[1754810197185,0.5,811.62,811.55,1.09757664]
[1754810197385,0.5,811.66,811.6,1.09757664]
[1754810197588,0.5,811.7,811.58,1.63520439]
[1754810198191,0.5,811.7,811.6,1.63520439]
[1754810198387,0.5,811.7,811.65,1.63520439]
[1754810198691,0.5,811.7,811.67,1.63520439]
[1754810199192,0.5,811.7,811.0,2.76446557]
[1754810199394,0.5,811.7,811.68,1.64428066]
[1754810201989,0.5,811.81,811.68,1.64428066]
[1754810202194,0.5,811.81,811.7,1.64428066]
[1754810203091,0.21458103,812.47,811.7,1.64428066]
[1754810203092,0.5,811.82,811.7,1.64428066]
[1754810206294,0.5,811.82,811.69,1.64428066]